fUSD/lending_fUSD_20240904
["ID","MTS","AMOUNT","RATE_DAILY","PERIOD"]
[337094335,1725423034150,-151.0,0.00014565,2]
[337094336,1725423034160,-151.0,0.00014565,2]
[337094337,1725423034170,-151.0,0.00014565,2]
[337094338,1725423034179,-528.74438754,0.00014565,2]
[337094341,1725423038385,-575.0,0.00014565,2]
[337094342,1725423038396,-303.16003,0.00014565,2]
[337094343,1725423038407,-187.89735466,0.00014565,2]
[337094344,1725423038416,-127.10264534,0.00014565,2]
[337094345,1725423038439,-65.89601266,0.00014565,2]
[337094346,1725423038449,-192.998658,0.00014565,2]
[337094347,1725423038458,-151.0,0.00014565,2]
[337094348,1725423038468,-6083.78029542,0.00014565,2]
[337094349,1725423038480,-1071.53177074,0.00014565,2]
[337094350,1725423038490,-1516.8854458,0.00014566,2]
[337094351,1725423038499,-629.92088066,0.00014567,5]
[337094352,1725423038509,-171.936499,0.00014569,2]
[337094353,1725423038518,-171.936499,0.00014569,2]
[337094354,1725423038528,-151.0,0.00014569,2]
[337094355,1725423038538,-275.886587,0.00014569,2]
[337094356,1725423038548,-151.0,0.00014569,2]
[337094358,1725423038559,-151.0,0.00014569,2]
[337094360,1725423038568,-151.0,0.00014569,2]
[337094362,1725423038577,-178.686208,0.00014569,2]
[337094364,1725423038586,-151.0,0.00014569,2]
[337094366,1725423038595,-150.11638948,0.00014571,2]
[337094368,1725423038606,-151.0,0.00014572,2]
[337094370,1725423038615,-151.0,0.00014572,2]
[337094372,1725423038624,-500.0,0.00014572,2]
[337094374,1725423038633,-500.0,0.00014572,2]
[337094376,1725423038642,-369.69058901,0.00014572,2]
[337094377,1725423038651,-500.0,0.00014572,2]
[337094379,1725423038660,-500.0,0.00014572,2]
[337094381,1725423038670,-500.0,0.00014572,2]
[337094383,1725423038679,-500.0,0.00014572,2]
[337094385,1725423038688,-431.94475455,0.00014572,2]
[337094388,1725423038704,-68.05524545,0.00014572,2]
[337094390,1725423038713,-401.02682268,0.00014572,2]
[337094392,1725423038723,-500.0,0.00014572,2]
[337094394,1725423038731,-500.0,0.00014572,2]
[337094395,1725423038740,-500.0,0.00014572,2]
[337094397,1725423038750,-500.0,0.00014572,2]
[337094399,1725423038759,-500.0,0.00014572,2]
[337094401,1725423038768,-188.15077885,0.00014572,2]
[337094403,1725423038779,-311.84922115,0.00014572,2]
[337094405,1725423038788,-500.0,0.00014572,2]
[337094407,1725423038797,-500.0,0.00014572,2]
[337094409,1725423038806,-500.0,0.00014572,2]
[337094411,1725423038817,-500.0,0.00014572,2]
[337094413,1725423038826,-500.0,0.00014572,2]
[337094416,1725423038837,-500.0,0.00014572,2]
[337094418,1725423038848,-500.0,0.00014572,2]
[337094420,1725423038859,-500.0,0.00014572,2]
[337094422,1725423038868,-500.0,0.00014572,2]
[337094424,1725423038877,-500.0,0.00014572,2]
[337094426,1725423038886,-500.0,0.00014572,2]
[337094428,1725423038895,-477.70917916,0.00014572,2]
[337094430,1725423038904,-151.0,0.00014572,2]
[337094431,1725423038914,-500.0,0.00014572,2]
[337094433,1725423038923,-577.88258371,0.00014572,2]
[337094435,1725423038932,-500.0,0.00014572,2]
[337094437,1725423038941,-500.0,0.00014572,2]
[337094439,1725423038950,-500.0,0.00014572,2]
[337094441,1725423038959,-500.0,0.00014572,2]
[337094443,1725423038968,-500.0,0.00014572,2]
[337094445,1725423038977,-500.0,0.00014572,2]
[337094447,1725423038986,-639.35021762,0.00014572,2]
[337094449,1725423038995,-195.94581951,0.00014572,2]
[337094451,1725423039004,-263.97309904,0.00014572,2]
[337094453,1725423039014,-500.0,0.00014572,2]
[337094455,1725423039023,-416.3580974,0.00014572,2]
[337094457,1725423039031,-146.61266599,0.00014572,2]
[337094577,1725423040177,-1078.0,0.00014495,2]
[337094579,1725423040186,-353.38733401,0.00014572,2]
[337094581,1725423040196,-500.0,0.00014572,2]
[337094583,1725423040206,-533.41,0.00014572,2]
[337094584,1725423040216,-338.597071,0.00014572,2]
[337094586,1725423040225,-151.0,0.00014572,2]
[337094588,1725423040235,-338.597071,0.00014572,2]
[337094590,1725423040244,-142.88293439,0.00014572,2]
[337094593,1725423040262,-310.14703584,0.00014572,2]
[337094596,1725423040287,-46.97002977,0.00014572,2]
[337094598,1725423040295,-500.0,0.00014572,2]
[337094600,1725423040304,-500.0,0.00014572,2]
[337094602,1725423040314,-500.0,0.00014572,2]
[337094604,1725423040324,-151.0,0.00014572,2]
[337094606,1725423040333,-151.0,0.00014572,2]
[337094608,1725423040342,-500.0,0.00014572,2]
[337094610,1725423040351,-500.0,0.00014572,2]
[337094612,1725423040361,-278.98060559,0.00014572,2]
[337094902,1725423043439,-1223.386679,0.00014551,2]
[337094904,1725423043449,-1223.386679,0.00014565,2]
[337094905,1725423043458,-221.01939441,0.00014572,2]
[337094907,1725423043467,-536.9799227,0.00014572,2]
[337094909,1725423043477,-221.859656,0.00014572,2]
[337094911,1725423043486,-500.0,0.00014572,2]
[337094913,1725423043495,-500.0,0.00014572,2]
[337094915,1725423043504,-500.0,0.00014572,2]
[337094917,1725423043514,-500.0,0.00014572,2]
[337094919,1725423043523,-500.0,0.00014572,2]
[337094921,1725423043533,-501.65266877,0.00014572,2]
[337094924,1725423043553,-163.02733123,0.00014572,2]
[337094926,1725423043563,-500.0,0.00014572,2]
[337094928,1725423043573,-500.0,0.00014572,2]
[337094930,1725423043583,-151.0,0.00014572,2]
[337094932,1725423043592,-151.0,0.00014572,2]
[337094935,1725423043603,-500.0,0.00014572,2]
[337094937,1725423043613,-151.0,0.00014572,2]
[337094938,1725423043623,-500.0,0.00014572,2]
[337094940,1725423043632,-394.30386916,0.00014572,2]
[337094942,1725423043641,-500.0,0.00014572,2]
[337094944,1725423043651,-493.8040541,0.00014572,2]
[337094946,1725423043660,-500.0,0.00014572,2]
[337094948,1725423043669,-554.61,0.00014572,2]
[337094950,1725423043678,-192.998658,0.00014572,2]
[337094952,1725423043687,-1732.31,0.00014572,2]
[337094955,1725423043696,-559.91,0.00014572,2]
[337094957,1725423043706,-192.998658,0.00014572,2]
[337094960,1725423043715,-684.73,0.00014572,2]
[337094962,1725423043724,-617.29,0.00014572,2]
[337094964,1725423043733,-151.0,0.00014572,2]
[337094966,1725423043742,-505.07,0.00014572,2]
[337094968,1725423043753,-500.0,0.00014572,2]
[337094970,1725423043763,-500.0,0.00014572,2]
[337094972,1725423043772,-720.45,0.00014572,2]
[337094974,1725423043782,-500.0,0.00014572,2]
[337094976,1725423043791,-500.0,0.00014572,2]
[337094978,1725423043800,-1223.386679,0.00014572,2]
[337094980,1725423043809,-1223.386679,0.00014572,2]
[337094982,1725423043820,-169.50795236,0.00014573,2]
[337094984,1725423043830,-500.0,0.00014573,2]
[337094986,1725423043839,-500.0,0.00014573,2]
[337094987,1725423043848,-500.0,0.00014573,2]
[337094989,1725423043857,-500.0,0.00014573,2]
[337094991,1725423043866,-500.0,0.00014573,2]
[337094993,1725423043875,-500.0,0.00014573,2]
[337094995,1725423043885,-513.48821319,0.00014573,2]
[337094997,1725423043894,-501.17260198,0.00014573,2]
[337094998,1725423043903,-500.0,0.00014573,2]
[337095000,1725423043912,-500.0,0.00014573,2]
[337095002,1725423043922,-500.0,0.00014573,2]
[337095004,1725423043931,-500.0,0.00014573,2]
[337095006,1725423043940,-500.0,0.00014573,2]
[337095008,1725423043949,-500.0,0.00014573,2]
[337095009,1725423043958,-500.0,0.00014573,2]
[337095011,1725423043967,-500.0,0.00014573,2]
[337095013,1725423043976,-680.56,0.00014573,2]
[337095015,1725423043985,-500.0,0.00014573,2]
[337095017,1725423043994,-461.35962881,0.00014573,2]
[337095019,1725423044003,-846.01,0.00014573,2]
[337095020,1725423044012,-500.0,0.00014573,2]
[337095022,1725423044022,-500.0,0.00014573,2]
[337095024,1725423044031,-500.0,0.00014573,2]
[337095026,1725423044040,-895.64,0.00014573,2]
[337095028,1725423044049,-500.0,0.00014573,2]
[337095029,1725423044058,-854.34,0.00014573,2]
[337095031,1725423044068,-500.0,0.00014573,2]
[337095033,1725423044077,-558.67,0.00014573,2]
[337095035,1725423044086,-500.0,0.00014573,2]
[337095037,1725423044095,-517.32,0.00014573,2]
[337095039,1725423044104,-500.0,0.00014573,2]
[337095041,1725423044114,-714.08,0.00014573,2]
[337095043,1725423044123,-500.0,0.00014573,2]
[337095045,1725423044132,-783.58,0.00014573,2]
[337095047,1725423044141,-500.0,0.00014573,2]
[337095049,1725423044152,-500.0,0.00014573,2]
[337095052,1725423044164,-500.0,0.00014573,2]
[337095054,1725423044173,-1539.76,0.00014573,2]
[337095056,1725423044182,-1097.34,0.00014573,2]
[337095058,1725423044191,-500.0,0.00014573,2]
[337095059,1725423044201,-952.76,0.00014573,2]
[337095061,1725423044210,-500.0,0.00014573,2]
[337095064,1725423044221,-500.0,0.00014573,2]
[337095066,1725423044232,-1177.47,0.00014573,2]
[337095068,1725423044241,-540.74157322,0.00014573,2]
[337095070,1725423044252,-500.0,0.00014573,2]
[337095072,1725423044260,-81.2510811,0.00014573,2]
[337097424,1725423143646,252.56,0.00011727,2]
[337097425,1725423511599,234.91,0.00010959,2]
[337097426,1725423784510,255.35,0.00011629,2]
[337097427,1725423807312,11504.0,0.000102,5]
[337097428,1725423848133,550.0,0.00011,2]
[337097429,1725423849247,600.0,0.00013,2]
[337097443,1725424073530,155.33,0.00010959,2]
[337097488,1725424232289,-150.0,0.00013093,2]
[337097489,1725424232298,-188.98,0.00013536,2]
[337097490,1725424232308,-140.59301165,0.00013547,2]
[337097491,1725424232347,-109.40698835,0.00013547,2]
[337097492,1725424232356,-384.0,0.00013551,2]
[337097493,1725424232365,-211.02,0.00013565,2]
[337097494,1725424232373,-616.0,0.00013574,2]
[337097495,1725424232383,-6478.3246202,0.0001388,2]
[337097496,1725424232392,-255.35,0.00013893,2]
[337097497,1725424232401,-150.0,0.000143,2]
[337097498,1725424232410,-300.0,0.00014447,2]
[337097499,1725424232419,-150.0,0.00014448,2]
[337097500,1725424232428,-150.0,0.00014448,2]
[337097501,1725424232437,-150.0,0.00014448,2]
[337097502,1725424232446,-150.0,0.00014448,2]
[337097503,1725424232682,-150.0,0.00014448,2]
[337097504,1725424232691,-3403.11387825,0.00014466,2]
[337097505,1725424232700,-150.0,0.00014471,2]
[337097506,1725424232709,-160.57250089,0.00014471,2]
[337097507,1725424232718,-44011.61161153,0.00014472,2]
[337097519,1725424238340,-250.0,0.00013597,2]
[337097520,1725424238349,-321.35952284,0.00014472,2]
[337097521,1725424238359,-733.85047716,0.00014472,2]
[337097628,1725424240358,-382.13353785,0.00014472,2]
[337097650,1725424240574,-563.31,0.00014472,2]
[337097653,1725424240586,-1629.78778387,0.00014472,2]
[337097995,1725424244598,-687.48634454,0.00014472,2]
[337098032,1725424246393,-32919.22040083,0.00014472,2]
[337098033,1725424246407,-368.7854065,0.00014472,2]
[337098036,1725424269965,229.81,0.00011674,2]
[337098045,1725424804238,218.31,0.00011634,2]
[337098068,1725425337796,207.39,0.00011622,2]
[337098075,1725425431512,-290.86586941,0.00013093,2]
[337098076,1725425431522,-250.0,0.00013531,2]
[337098077,1725425431531,-692.8,0.00013536,2]
[337098078,1725425431539,-168.81,0.00013549,2]
[337098079,1725425431548,-307.2,0.00013554,2]
[337098080,1725425431557,-500.0,0.00013564,2]
[337098081,1725425431566,-500.0,0.00013564,2]
[337098082,1725425431575,-500.0,0.00013564,2]
[337098083,1725425431583,-500.0,0.00013564,2]
[337098084,1725425431592,-407.07897106,0.00013564,2]
[337098106,1725425437454,-92.92102894,0.00013564,2]
[337098107,1725425437464,-500.0,0.00013564,2]
[337098108,1725425437473,-500.0,0.00013564,2]
[337098109,1725425437482,-185.27897096,0.00013564,2]
[337098110,1725425437568,-234.58898126,0.00013564,2]
[337098111,1725425437578,-200.0,0.00013569,2]
[337098112,1725425437587,-207.39,0.00013886,2]
[337098113,1725425437597,-400.28133155,0.0001398,2]
[337098114,1725425437606,-107.73968719,0.000143,2]
[337098137,1725425439450,-42.26031281,0.000143,2]
[337098138,1725425439460,-809.94468719,0.0001433,2]
[337098148,1725425443061,-152.26,0.00013559,2]
[337098149,1725425443070,-1853.60847281,0.0001433,2]
[337098150,1725425443079,-150.0,0.00014448,2]
[337098151,1725425443088,-150.0,0.00014448,2]
[337098152,1725425443098,-150.0,0.00014448,2]
[337098153,1725425443108,-150.0,0.00014448,2]
[337098154,1725425443117,-150.0,0.00014448,2]
[337098155,1725425443126,-2594.9973966,0.00014469,2]
[337098156,1725425443301,-467.80509387,0.00014469,2]
[337098157,1725425443310,-1237.09490613,0.00014471,2]
[337098165,1725425651675,550.0,0.00011,2]
[337098166,1725425652749,600.0,0.00013,2]
[337098167,1725425880252,200.69,0.00011624,2]
[337098195,1725426450873,230.93,0.00010959,2]
[337098204,1725426606926,-1000.0,0.0001353,2]
[337098205,1725426606956,-250.0,0.00013534,2]
[337098206,1725426606987,-200.01,0.00013534,2]
[337098207,1725426607015,-250.0,0.00013537,2]
[337098208,1725426607045,-224.95,0.00013576,2]
[337098209,1725426607075,-200.69,0.00013888,2]
[337098210,1725426607103,-352.47674389,0.00014044,2]
[337098228,1725426631630,-212.48,0.00013549,2]
[337098230,1725426631639,-47.80458766,0.00014044,2]
[337098232,1725426631648,-152.0,0.00014086,3]
[337098234,1725426631657,-470.53547438,0.00014199,2]
[337098238,1725426631688,-365.06759219,0.00014199,2]
[337098239,1725426631802,-694.11941127,0.00014199,2]
[337098399,1725426639749,-852.265,0.00014199,2]
[337098690,1725426642804,-256.46,0.00014199,2]
[337098693,1725426642815,-1249.688,0.00014199,2]
[337101147,1725426713455,11504.0,0.000102,5]
[337101148,1725426791070,180.62,0.00011635,2]
[337101149,1725426796610,11678.75,0.00011,2]
[337101152,1725427178419,155.89,0.00010959,2]
[337101153,1725427382497,200.26,0.00011575,2]
[337101154,1725427455213,550.0,0.00011,2]
[337101155,1725427456384,600.0,0.00013,2]
[337101156,1725427492275,3251.37,0.00013,2]
[337101180,1725427687082,3156.98353502,0.00011781,7]
[337101196,1725427831702,-155.08,0.00013347,2]
[337101197,1725427831712,-250.0,0.00013357,2]
[337101198,1725427831722,-157.6,0.00013395,2]
[337101199,1725427831732,-4.65,0.00013425,2]
[337101200,1725427831819,-150.43,0.00013425,2]
[337101201,1725427831828,-394.14707993,0.00013435,2]
[337101202,1725427831839,-418.54007673,0.00013435,2]
[337101203,1725427831851,-418.17284334,0.00013435,2]
[337101356,1725427839788,-1613.17127567,0.00013435,2]
[337101358,1725427839800,-3496.95872433,0.00013435,2]
[337101360,1725427839809,-179.96,0.00013448,2]
[337101362,1725427839818,-237.99,0.0001347,2]
[337101364,1725427839827,-250.0,0.00013493,2]
[337101366,1725427839836,-155.08,0.00013516,2]
[337101368,1725427839846,-1000.0,0.00013526,2]
[337101370,1725427839855,-177.54,0.00013536,2]
[337101372,1725427839865,-192.23,0.00013699,2]
[337101374,1725427839874,-400.28133156,0.00013714,2]
[337101376,1725427839886,-746.18,0.00013721,2]
[337101378,1725427839895,-200.26,0.00013839,2]
[337101380,1725427839904,-155.08,0.0001389,2]
[337101382,1725427839913,-5899.66624928,0.000139,2]
[337101384,1725427839923,-255.27026029,0.00014,4]
[337101386,1725427839932,-250.0,0.00014,2]
[337101388,1725427839941,-155.08,0.0001405,2]
[337101390,1725427839950,-499.99,0.0001406,2]
[337101392,1725427839960,-155.08,0.00014189,2]
[337101394,1725427839969,-2000.0,0.00014199,2]
[337101396,1725427839978,-200.0,0.00014199,2]
[337101398,1725427839988,-2219.62764,0.00014199,2]
[337101400,1725427839997,-150.0,0.00014348,2]
[337101401,1725427840006,-150.0,0.00014348,2]
[337101403,1725427840015,-2970.9475377,0.00014423,2]
[337101405,1725427840024,-155.08,0.00014438,2]
[337101407,1725427840033,-150.0,0.00014448,2]
[337101410,1725427840043,-150.0,0.00014448,2]
[337101412,1725427840052,-150.0,0.00014448,2]
[337101414,1725427840061,-150.0,0.00014448,2]
[337101416,1725427840070,-150.0,0.00014448,2]
[337101418,1725427840080,-150.0,0.00014448,2]
[337101420,1725427840089,-150.0,0.00014457,2]
[337101421,1725427840098,-289.8078,0.00014458,2]
[337101423,1725427840107,-151.0,0.00014458,2]
[337101425,1725427840116,-203.158242,0.00014458,2]
[337101427,1725427840126,-203.158242,0.00014458,2]
[337101429,1725427840139,-978.709343,0.00014458,2]
[337101431,1725427840156,-978.709343,0.00014458,2]
[337101433,1725427840165,-157.292184,0.00014458,2]
[337101435,1725427840174,-151.0,0.00014458,2]
[337101437,1725427840183,-151.0,0.00014458,2]
[337101439,1725427840192,-151.0,0.00014458,2]
[337101441,1725427840201,-151.0,0.00014458,2]
[337101443,1725427840211,-151.0,0.00014458,2]
[337101445,1725427840220,-151.0,0.00014458,2]
[337101447,1725427840229,-151.0,0.00014458,2]
[337101449,1725427840239,-151.0,0.00014458,2]
[337101451,1725427840248,-1000.0,0.00014458,2]
[337101453,1725427840257,-2725.0771,0.00014458,2]
[337101455,1725427840267,-1000.0,0.00014458,2]
[337101457,1725427840276,-151.0,0.00014459,2]
[337101459,1725427840286,-151.0,0.00014459,2]
[337101461,1725427840295,-203.158242,0.00014459,2]
[337101463,1725427840304,-203.158242,0.00014459,2]
[337101465,1725427840313,-978.709343,0.00014459,2]
[337101467,1725427840322,-978.709343,0.00014459,2]
[337101469,1725427840332,-151.0,0.00014459,2]
[337101471,1725427840341,-151.0,0.00014459,2]
[337101473,1725427840350,-151.0,0.00014459,2]
[337101475,1725427840359,-151.0,0.00014459,2]
[337101477,1725427840369,-151.0,0.00014459,2]
[337101478,1725427840378,-168.450148,0.00014459,2]
[337101480,1725427840395,-151.0,0.00014459,2]
[337101482,1725427840404,-151.0,0.00014459,2]
[337101484,1725427840414,-151.0,0.00014459,2]
[337101486,1725427840423,-151.0,0.00014459,2]
[337101488,1725427840432,-151.0,0.00014459,2]
[337101490,1725427840441,-151.0,0.00014459,2]
[337101492,1725427840450,-151.0,0.00014459,2]
[337101494,1725427840459,-151.0,0.00014459,2]
[337101496,1725427840469,-6108.5889,0.00014459,2]
[337101498,1725427840478,-152.59925876,0.00014469,2]
[337101500,1725427840487,-700.24070948,0.00014469,2]
[337101502,1725427840496,-321.35952284,0.00014469,2]
[337101504,1725427840506,-239.65597659,0.00014469,2]
[337101506,1725427840515,-154.74285,0.00014471,2]
[337101508,1725427840524,-154.74285,0.00014471,2]
[337101510,1725427840533,-151.0,0.00014471,2]
[337101511,1725427840542,-151.0,0.00014471,2]
[337101514,1725427840552,-151.0,0.00014471,2]
[337101515,1725427840561,-232.763517,0.00014471,2]
[337101517,1725427840570,-151.0,0.00014471,2]
[337101519,1725427840579,-151.0,0.00014471,2]
[337101521,1725427840589,-151.0,0.00014471,2]
[337101523,1725427840598,-221.267007,0.00014471,2]
[337101525,1725427840607,-151.0,0.00014471,2]
[337101527,1725427840617,-151.0,0.00014471,2]
[337101528,1725427840626,-168.912681,0.00014471,2]
[337101530,1725427840637,-151.0,0.00014471,2]
[337101532,1725427840650,-151.0,0.00014471,2]
[337101533,1725427840660,-151.0,0.00014471,2]
[337101535,1725427840669,-151.0,0.00014471,2]
[337101536,1725427840678,-203.158242,0.00014471,2]
[337101537,1725427840690,-203.158242,0.00014471,2]
[337101538,1725427840699,-978.709343,0.00014471,2]
[337101539,1725427840710,-978.709343,0.00014471,2]
[337101540,1725427840722,-151.0,0.00014471,2]
[337101541,1725427840733,-151.0,0.00014471,2]
[337101542,1725427840742,-206.7960771,0.00014471,2]
[337101543,1725427840752,-151.0,0.00014471,2]
[337101544,1725427840761,-2138.1492156,0.00014471,2]
[337101545,1725427840770,-151.0,0.00014471,2]
[337101546,1725427840779,-151.0,0.00014471,2]
[337101547,1725427840789,-151.0,0.00014471,2]
[337101548,1725427840798,-186.095899,0.00014471,2]
[337101549,1725427840807,-1372.7753814,0.00014476,2]
[337101550,1725427840820,-415.1,0.00014476,2]
[337101551,1725427840831,-1183.07215622,0.00014476,2]
[337101552,1725427840840,-187.83228282,0.00014479,2]
[337101553,1725427840849,-1000.0,0.00014499,2]
[337101554,1725427840859,-1000.0,0.00014499,2]
[337101555,1725427840868,-151.0,0.00014499,2]
[337101556,1725427840877,-151.0,0.00014499,2]
[337101557,1725427840889,-978.709343,0.00014499,2]
[337101558,1725427840898,-978.709343,0.00014499,2]
[337101559,1725427840908,-151.0,0.00014499,2]
[337101560,1725427840917,-151.0,0.00014499,2]
[337101561,1725427840926,-151.0,0.00014499,2]
[337101562,1725427840935,-201.983905,0.00014499,2]
[337101563,1725427840944,-151.0,0.00014499,2]
[337101564,1725427840953,-181.669831,0.00014499,2]
[337101565,1725427840962,-2204.1387662,0.000145,2]
[337101566,1725427840973,-17825.8612338,0.000145,2]
[337101567,1725427840983,-154.74285,0.000145,2]
[337101568,1725427840992,-154.74285,0.000145,2]
[337101569,1725427841001,-151.0,0.000145,2]
[337101570,1725427841010,-151.0,0.000145,2]
[337101571,1725427841019,-151.0,0.000145,2]
[337101572,1725427841028,-151.0,0.000145,2]
[337101573,1725427841038,-151.0,0.000145,2]
[337101574,1725427841047,-8393.407154,0.000145,3]
[337101575,1725427841056,-151.0,0.000145,2]
[337101576,1725427841065,-151.0,0.000145,2]
[337101577,1725427841075,-155.521058,0.000145,2]
[337101578,1725427841085,-274.175516,0.000145,2]
[337101579,1725427841094,-203.158242,0.000145,2]
[337101580,1725427841103,-203.158242,0.000145,2]
[337101581,1725427841112,-78.2328542,0.000145,2]
[337101582,1725427841411,-124.9253878,0.000145,2]
[337101583,1725427841421,-203.158242,0.000145,2]
[337101584,1725427841430,-150.0,0.000145,2]
[337101585,1725427841440,-978.709343,0.000145,2]
[337101586,1725427841449,-249.36224977,0.000145,2]
[337101587,1725427841461,-729.34709323,0.000145,2]
[337101588,1725427841471,-978.709343,0.000145,2]
[337101589,1725427841480,-978.709343,0.000145,2]
[337101590,1725427841489,-151.0,0.000145,2]
[337101591,1725427841498,-150.0,0.000145,2]
[337101592,1725427841508,-151.0,0.000145,2]
[337101593,1725427841518,-151.0,0.000145,2]
[337101594,1725427841528,-151.0,0.000145,2]
[337101595,1725427841538,-151.0,0.000145,2]
[337101596,1725427841547,-151.0,0.000145,2]
[337101597,1725427841557,-151.0,0.000145,2]
[337101598,1725427841567,-186.720866,0.000145,2]
[337101599,1725427841577,-154.74285,0.00014507,2]
[337101600,1725427841586,-154.74285,0.00014507,2]
[337101601,1725427841595,-151.0,0.00014507,2]
[337101602,1725427841606,-151.0,0.00014507,2]
[337101603,1725427841616,-287.355326,0.00014507,2]
[337101604,1725427841626,-151.0,0.00014507,2]
[337101605,1725427841636,-151.0,0.00014507,2]
[337101606,1725427841649,-151.0,0.00014507,2]
[337101607,1725427841658,-151.0,0.00014507,2]
[337101608,1725427841667,-283.464715,0.00014507,2]
[337101609,1725427841677,-151.0,0.00014507,2]
[337101610,1725427841687,-203.158242,0.00014507,2]
[337101611,1725427841696,-203.158242,0.00014507,2]
[337101612,1725427841705,-203.158242,0.00014507,2]
[337101613,1725427841715,-203.158242,0.00014507,2]
[337101614,1725427841725,-978.709343,0.00014507,2]
[337101615,1725427841735,-978.709343,0.00014507,2]
[337101616,1725427841744,-978.709343,0.00014507,2]
[337101617,1725427841754,-978.709343,0.00014507,2]
[337101618,1725427841763,-50.69433893,0.00014507,2]
[337101619,1725427841775,-100.30566107,0.00014507,2]
[337101620,1725427841785,-151.0,0.00014507,2]
[337101621,1725427841794,-15.02806064,0.00014522,5]
[337101622,1725427841809,-1181.26482868,0.00014522,5]
[337101623,1725427841818,-154.74285,0.00014522,2]
[337101624,1725427841827,-154.74285,0.00014522,2]
[337101625,1725427841839,-151.0,0.00014522,2]
[337101626,1725427841849,-151.0,0.00014522,2]
[337101627,1725427841858,-151.0,0.00014522,2]
[337101628,1725427841868,-151.0,0.00014522,2]
[337101629,1725427841878,-978.709343,0.00014522,2]
[337101630,1725427841887,-978.709343,0.00014522,2]
[337101631,1725427841896,-151.0,0.00014522,2]
[337101632,1725427841906,-151.0,0.00014522,2]
[337101633,1725427841915,-552.0,0.00014523,2]
[337101634,1725427841924,-1899.0,0.00014523,2]
[337101635,1725427841932,-1134.0,0.00014523,2]
[337101636,1725427841941,-805.0,0.00014523,2]
[337101637,1725427841950,-1922.0,0.00014523,2]
[337101638,1725427841960,-3341.0,0.00014523,2]
[337101639,1725427841969,-248.0,0.00014523,2]
[337101640,1725427841979,-1078.0,0.00014523,2]
[337101641,1725427841988,-5855.0,0.00014523,2]
[337101642,1725427841998,-633.806,0.00014523,2]
[337101643,1725427842008,-1546.0,0.00014523,2]
[337101644,1725427842017,-150.0,0.00014523,2]
[337101645,1725427842026,-3733.0,0.00014523,2]
[337101646,1725427842036,-1260.0,0.00014523,2]
[337101647,1725427842045,-447.0,0.00014523,2]
[337101648,1725427842054,-13467.0,0.00014523,2]
[337101649,1725427842063,-154.74285,0.00014523,2]
[337101650,1725427842073,-154.74285,0.00014523,2]
[337101651,1725427842082,-154.74285,0.00014523,2]
[337101652,1725427842091,-154.74285,0.00014523,2]
[337101653,1725427842100,-154.74285,0.00014523,2]
[337101654,1725427842110,-154.74285,0.00014523,2]
[337101655,1725427842119,-154.74285,0.00014523,2]
[337101656,1725427842130,-154.74285,0.00014523,2]
[337101657,1725427842141,-154.74285,0.00014523,2]
[337101658,1725427842151,-154.74285,0.00014523,2]
[337101659,1725427842161,-154.74285,0.00014523,2]